bitfinex/quotes_ETHUSD_20241122
["timestamp","ask_amount","ask_price","bid_price","bid_amount"]
[1732284045470,3.0,3293.4,3292.3,1.5313]
[1732284045995,6.03637,3293.4,3292.3,1.5313]
[1732284046502,3.58647,3293.3,3292.3,1.5313]
[1732284046681,3.0,3292.9,3292.3,1.5313]
[1732284047394,3.0,3292.9,3290.9,1.5919]
[1732284047594,3.0,3292.9,3291.1,1.5689]
[1732284047595,0.55,3292.8,3291.1,1.5689]
[1732284047792,3.0,3292.7,3291.2,0.15992792]
[1732284047960,1.24245589,3292.8,3291.3,1.5689]
[1732284048164,0.69245589,3292.8,3291.3,1.5689]
[1732284048663,3.55,3292.7,3291.3,1.5689]
[1732284048879,0.72794559,3292.6,3291.3,1.5689]
[1732284049088,0.69245589,3292.8,3291.3,1.5689]
[1732284050386,0.69245589,3292.8,3291.4,1.5578]
[1732284050587,3.39502964,3293.0,3291.4,1.5578]
[1732284051007,3.0,3292.9,3291.4,1.5578]
[1732284052490,3.39502964,3292.6,3291.4,1.5578]
[1732284053932,3.39502964,3292.2,3291.4,1.5578]
[1732284054691,3.55,3292.5,3291.4,1.5578]
[1732284054917,0.69450296,3292.4,3291.5,0.03038228]
[1732284055117,3.0,3292.9,3290.9,0.3029]
[1732284055437,3.0,3292.5,3291.0,1.9183]
[1732284055584,3.0,3292.5,3291.0,1.6154]
[1732284056021,3.94502964,3292.6,3291.2,1.5605]
[1732284056327,3.39502964,3292.2,3291.2,1.5605]
[1732284056924,3.0376,3292.1,3291.2,1.5605]
[1732284057109,3.39502964,3291.8,3291.2,1.5605]
[1732284057321,3.0,3291.7,3291.2,1.5605]
[1732284058119,3.0,3291.7,3291.2,0.5525]
[1732284058537,6.03794,3291.7,3289.5,0.03038592]
[1732284058748,3.39502964,3291.4,3289.5,0.33328592]
[1732284059734,3.0,3291.3,3289.5,0.03038592]
[1732284059940,4.6369,3291.3,3289.1,0.03039203]
[1732284060095,4.6369,3291.3,3289.2,0.3029]
[1732284060096,3.39502964,3291.0,3289.2,0.3029]
[1732284060299,3.39502964,3291.0,3288.5,3.39502964]
[1732284060300,3.55,3290.9,3288.6,0.33329488]
[1732284060644,3.0,3290.5,3288.7,0.40323028]
[1732284060814,3.0,3290.5,3288.7,0.03039783]
[1732284061011,3.0,3290.5,3288.3,1.5644]
[1732284061218,3.0,3290.5,3288.5,1.5644]
[1732284061219,0.63950296,3290.4,3288.5,1.5644]
[1732284061423,0.33950296,3290.9,3288.6,1.67729976]
[1732284061614,3.0,3290.9,3288.6,1.67729976]
[1732284061810,3.0,3290.5,3288.6,1.6469]
[1732284062035,0.63950296,3290.4,3288.8,0.9578]
[1732284062199,3.39502964,3290.2,3288.8,0.9578]
[1732284062530,3.39502964,3289.8,3288.8,0.9578]
[1732284062731,0.55,3290.1,3288.8,0.9578]
[1732284063041,0.853941,3290.1,3288.8,0.9578]
[1732284063234,6.893371,3290.1,3288.8,0.9578]
[1732284063433,4.077,3289.7,3288.8,0.9578]
[1732284063604,4.077,3289.7,3287.7,0.03040494]
[1732284063605,3.0,3289.3,3287.7,0.9578]
[1732284064114,0.4077,3289.6,3287.8,0.03041238]
[1732284064318,3.0,3289.7,3287.9,0.9578]
[1732284064521,3.39502964,3288.2,3287.3,0.03040728]
[1732284064759,3.39502964,3288.2,3285.7,3.39502964]
[1732284064760,3.0,3288.1,3285.7,3.39502964]
[1732284064955,3.33950296,3288.1,3285.8,0.37396416]
[1732284065132,3.33950296,3288.1,3286.1,3.39502964]
[1732284065331,3.0,3288.5,3286.2,0.03041937]
[1732284065978,3.0,3288.5,3286.2,0.04041937]
[1732284066126,3.0,3289.0,3286.6,3.39502964]
[1732284066332,3.0,3289.0,3286.7,0.03041268]
[1732284066726,0.55,3289.1,3286.7,0.03041268]
[1732284067038,1.0458,3290.1,3287.4,3.0]
[1732284067253,1.0458,3290.1,3287.5,1.1797431]
[1732284067425,1.0458,3290.1,3287.8,0.2188]
[1732284067626,1.0458,3290.1,3288.1,0.55]
[1732284067864,1.0458,3290.1,3288.3,0.2188]
[1732284068161,3.448063,3290.0,3288.3,0.2188]
[1732284068361,1.0458,3290.1,3288.3,0.2188]
[1732284068546,3.0,3289.6,3288.3,0.2188]
[1732284068750,3.93118434,3289.3,3288.3,0.2188]
[1732284069089,0.55,3289.4,3287.0,0.2188]
[1732284069090,3.93118434,3288.8,3287.0,0.2188]
[1732284069227,7.12192,3288.7,3287.0,0.2188]
[1732284069430,4.0812,3288.7,3287.0,0.2188]
[1732284069681,0.55,3288.5,3287.0,0.2188]
[1732284069830,0.359082,3288.4,3287.0,0.2188]
[1732284070034,3.93118434,3288.3,3287.0,0.2188]
[1732284070353,3.0,3288.2,3287.0,0.2188]
[1732284070768,3.0,3287.7,3287.0,0.2188]
[1732284071967,3.0,3287.7,3285.1,0.2188]
[1732284072167,3.0,3287.7,3285.2,0.24922734]
[1732284072168,1.24311843,3287.6,3285.2,0.24922734]
[1732284072528,3.93118434,3287.3,3285.2,0.24922734]
[1732284072732,3.0,3287.2,3285.2,0.24922734]
[1732284073032,0.69311843,3287.6,3285.2,0.24922734]
[1732284073229,3.0,3288.2,3285.4,0.2288]
[1732284073435,3.0,3288.2,3285.6,0.2188]
[1732284073738,0.69311843,3288.1,3285.7,0.2492247]
[1732284073932,3.93118434,3288.8,3286.2,0.55]
[1732284074128,3.93118434,3288.8,3286.6,0.55]
[1732284074336,3.93118434,3288.8,3286.9,0.55]
[1732284074556,9.11644981,3290.1,3287.2,0.55]
[1732284074557,0.39311843,3288.7,3287.2,0.55]
[1732284074868,3.93118434,3289.3,3286.6,0.55]
[1732284074869,3.93118434,3288.8,3287.3,0.2188]
[1732284075076,4.32430277,3288.8,3287.3,0.2188]
[1732284075676,4.32430277,3288.8,3287.0,0.2188]
[1732284075970,4.32430277,3288.8,3287.2,0.2188]
[1732284076171,0.43243028,3288.7,3287.2,0.2188]
[1732284076729,0.43243028,3288.7,3286.6,0.03041588]
[1732284076730,0.43243028,3288.7,3287.5,0.7688]
[1732284076934,3.93118434,3289.3,3287.7,0.2188]
[1732284077135,3.93118434,3289.3,3287.8,0.2188]
[1732284077438,0.39311843,3289.2,3287.9,0.03041238]
[1732284077758,0.01,3290.8,3287.9,0.03041238]
[1732284077759,3.93118434,3289.8,3287.9,0.2188]
[1732284077946,3.93118434,3289.8,3288.1,0.2188]
[1732284078151,3.93118434,3289.8,3288.3,0.2188]
[1732284078679,3.93118434,3290.3,3288.6,0.55]
[1732284078839,0.49692843,3290.2,3288.8,0.2188]
[1732284079167,0.49692843,3290.2,3288.9,0.24919956]
[1732284079335,4.94658434,3290.8,3289.1,0.2188]
[1732284080272,3.93118434,3290.3,3289.1,0.2188]
[1732284080907,0.2188,3290.2,3289.1,0.2188]
[1732284083895,3.93118434,3290.3,3289.1,0.2188]
[1732284084058,0.39311843,3290.2,3289.1,0.2188]
[1732284084393,3.35779574,3290.3,3289.1,0.2188]
[1732284084685,1.214007,3290.2,3289.1,0.2188]
[1732284086382,3.93118434,3289.8,3289.1,0.2188]
[1732284086582,0.39311843,3289.7,3289.1,0.2188]
[1732284087486,3.93118434,3289.3,3287.7,0.2188]
[1732284087780,0.39311843,3289.2,3287.7,0.2188]
[1732284087953,0.55,3289.1,3287.7,0.2188]
[1732284088152,3.93118434,3288.8,3287.7,0.2188]
[1732284088654,3.93118434,3288.3,3287.7,0.2188]
[1732284088855,0.39311843,3288.2,3287.7,0.2188]
[1732284089364,3.93118434,3288.8,3287.7,0.2188]
[1732284090586,3.93118434,3288.8,3285.9,3.01]
[1732284090587,3.93118434,3288.3,3286.1,0.2188]
[1732284090798,3.93118434,3288.3,3285.9,0.3029]
[1732284090799,0.50065843,3288.2,3286.3,0.2188]
[1732284090953,0.50065843,3288.2,3286.5,0.2188]
[1732284091156,3.93118434,3288.8,3286.9,0.2188]
[1732284091387,3.93118434,3288.8,3287.1,0.2188]
[1732284091555,3.93118434,3288.8,3287.2,0.03041572]
[1732284091882,5.00658434,3289.3,3287.3,0.2188]
[1732284092081,3.93118434,3288.8,3287.3,0.2188]
[1732284092355,0.55,3288.7,3287.3,0.2188]
[1732284092674,3.93118434,3288.8,3287.3,0.2188]
[1732284093258,0.55,3288.7,3287.3,0.2188]
[1732284093603,0.44811843,3288.6,3287.3,0.2188]
[1732284094513,0.44685184,3289.1,3287.3,0.2188]
[1732284095174,3.93118434,3289.3,3287.3,0.2188]
[1732284095401,3.93118434,3289.3,3287.5,3.55]
[1732284095565,3.93118434,3289.3,3287.6,0.2537111]
[1732284095768,1.44921843,3289.7,3287.8,0.2233]
[1732284095967,1.0561,3289.7,3287.8,0.2233]
[1732284096203,3.93118434,3289.8,3288.0,0.2233]
[1732284096711,1.214007,3290.2,3288.2,0.2233]
[1732284097004,1.214007,3290.2,3287.5,0.3129]
[1732284097005,1.214007,3290.2,3288.3,0.25370389]
[1732284097365,1.214007,3290.2,3288.4,3.0]
[1732284097572,3.93118434,3289.8,3288.5,0.3]
[1732284097900,3.93118434,3289.8,3287.7,0.2233]
[1732284098205,3.93118434,3289.8,3288.2,0.2233]
[1732284098568,0.55,3289.7,3288.2,0.2233]
[1732284100612,3.55,3289.7,3288.2,0.2233]
[1732284100795,0.55,3289.5,3288.2,0.2233]
[1732284101001,3.93118434,3289.3,3288.2,0.2233]
[1732284101188,0.74811843,3289.6,3288.2,0.2233]
[1732284101189,0.55,3288.7,3288.2,0.2233]
[1732284101772,0.55,3288.7,3288.2,0.1733]
[1732284101978,0.44811843,3288.6,3286.8,0.03041786]
[1732284102284,0.44811843,3288.6,3286.7,0.3029]
[1732284102490,3.93118434,3288.3,3286.1,0.03041866]
[1732284102693,3.93118434,3287.8,3286.0,0.33332371]
[1732284103298,3.93118434,3287.8,3286.0,0.03042371]
[1732284103513,3.93118434,3287.8,3285.6,0.03042458]
[1732284103713,3.93118434,3288.3,3286.0,0.3029]
[1732284104021,0.49756843,3288.2,3286.5,0.55]
[1732284104176,0.49756843,3288.2,3286.6,0.03042237]
[1732284104381,3.93118434,3288.8,3286.6,0.55]
[1732284104716,3.93118434,3288.8,3286.7,0.03041849]
[1732284104875,0.79439843,3288.7,3287.0,0.1733]
[1732284105083,0.79439843,3288.7,3287.2,0.1733]
[1732284105619,3.93118434,3288.8,3287.5,0.1733]
[1732284108714,4.0128,3289.3,3287.5,0.1733]
[1732284108715,3.93118434,3288.3,3287.5,0.1733]
[1732284108935,0.39311843,3288.2,3287.5,0.1733]
[1732284109236,3.93118434,3287.8,3286.1,0.1733]
[1732284110711,3.93118434,3287.8,3286.2,0.55]
[1732284110912,3.0,3288.2,3285.9,0.1733]
[1732284110913,3.93118434,3287.3,3285.9,0.1733]
[1732284111540,3.93118434,3286.8,3285.9,0.1733]
[1732284113012,3.93825242,3286.2,3285.9,0.1733]
[1732284113337,0.39382524,3286.1,3285.9,0.1733]
[1732284113659,3.93825242,3287.2,3285.9,0.1733]
[1732284114342,3.93825242,3286.7,3285.9,0.1733]
[1732284115136,1.0253,3287.3,3283.8,0.01]
[1732284115137,3.93825242,3286.2,3283.8,0.3029]
[1732284115342,0.39382524,3286.1,3284.0,0.1733]
[1732284115524,0.39382524,3286.1,3284.2,0.1733]
[1732284115731,0.39382524,3286.1,3284.4,0.1733]
[1732284115933,0.43320777,3286.0,3284.4,0.1733]
[1732284116107,3.93825242,3286.7,3284.4,0.1733]
[1732284116307,3.93825242,3286.7,3284.6,0.1733]
[1732284116540,0.39382524,3286.6,3285.0,0.1733]
[1732284117555,3.93825242,3286.2,3285.0,0.1733]
[1732284118258,3.93825242,3286.7,3285.2,0.1733]
[1732284118455,0.39382524,3286.6,3285.2,0.1733]
[1732284120796,3.93825242,3286.2,3285.2,0.1733]
[1732284121308,3.93825242,3285.7,3285.2,0.1733]
[1732284121709,3.0,3285.6,3284.8,0.1733]
[1732284121991,3.93825242,3285.1,3284.3,0.1733]
[1732284122571,3.93825242,3284.6,3282.7,0.03044632]
[1732284122769,3.93825242,3284.6,3282.8,0.1393]
[1732284123182,3.93825242,3284.1,3282.8,0.1393]
[1732284123593,3.93825242,3283.6,3282.8,0.1393]
[1732284126173,3.93825242,3283.1,3282.8,0.1393]
[1732284126414,3.93825242,3283.1,3282.1,0.1393]
[1732284127269,3.93825242,3283.6,3282.1,0.1393]
[1732284127470,5.00645242,3283.1,3282.1,0.1393]
[1732284127711,3.93825242,3282.6,3282.0,0.2]
[1732284128083,3.93825242,3282.1,3282.0,0.2]
[1732284128283,1.0447,3282.0,3281.7,0.1480547]
[1732284128502,4.0447,3282.0,3281.7,0.1480547]
[1732284128714,4.33207766,3282.1,3281.7,0.1480547]
[1732284128884,0.43320777,3282.0,3281.7,0.1480547]
[1732284129219,3.93825242,3282.1,3281.7,0.1480547]
[1732284129517,4.0447,3282.6,3281.8,0.1393]
[1732284129518,7.98295242,3282.6,3281.8,0.1393]
[1732284129885,7.98295242,3282.6,3281.7,0.1480547]
[1732284129886,3.93825242,3282.1,3281.7,0.1480547]
[1732284130202,1.0393,3281.9,3281.7,0.1480547]
[1732284130399,3.55,3281.8,3278.6,0.1493]
[1732284130585,3.93825242,3281.4,3278.8,0.1393]
[1732284130925,3.0,3281.3,3279.0,0.1393]
[1732284131228,1.0534,3281.2,3279.0,0.1393]
[1732284131427,0.40534,3281.1,3279.0,0.1393]
[1732284131723,0.40534,3281.1,3279.1,0.03048968]
[1732284131926,3.93825242,3281.4,3279.0,0.1393]
[1732284132083,0.763638,3281.7,3279.3,0.1393]
[1732284132284,3.0,3281.9,3279.5,0.1393]
[1732284132494,3.93825242,3281.5,3279.5,0.1393]
[1732284132802,3.93825242,3281.0,3279.5,0.1393]
[1732284133325,3.0,3280.9,3279.5,0.1393]
[1732284133528,0.69382524,3280.8,3279.5,0.1393]
[1732284134193,4.92055242,3280.5,3279.5,0.1393]
[1732284135330,3.93825242,3280.0,3278.5,0.1393]
[1732284136552,3.93825242,3280.5,3278.8,0.6893]
[1732284136736,4.97065242,3281.5,3279.3,3.55]
[1732284136941,4.97065242,3281.5,3279.6,0.55]
[1732284137140,4.97065242,3281.5,3279.8,0.55]
[1732284137327,0.49706524,3281.4,3280.1,0.55]
[1732284137533,1.021,3282.2,3280.1,0.55]
[1732284137847,3.93825242,3282.5,3280.4,0.1393]
[1732284138013,0.39382524,3282.4,3280.7,0.55]
[1732284138216,0.39382524,3282.4,3281.0,0.55]
[1732284138570,4.95925242,3283.0,3281.1,0.1393]
[1732284138855,4.98705242,3283.5,3281.1,0.1393]
[1732284139039,5.3272464,3283.5,3281.4,0.6893]
[1732284139237,5.3272464,3283.5,3281.5,0.1393]
[1732284139447,3.93825242,3283.0,3281.5,0.1393]
[1732284139620,0.39382524,3282.9,3281.5,0.1393]
[1732284139825,4.98705242,3283.5,3281.5,0.1393]
[1732284140155,4.93825242,3282.5,3281.5,0.1393]
[1732284141156,3.93825242,3282.0,3279.6,0.1393]
[1732284141455,3.93825242,3282.0,3280.2,0.1393]
[1732284141456,3.39382524,3281.9,3280.2,0.1393]
[1732284141620,3.39382524,3281.9,3280.4,0.1393]
[1732284141817,0.39382524,3281.9,3280.6,0.1393]
[1732284142054,3.0,3282.4,3280.6,0.1393]
[1732284142225,3.0,3282.4,3280.6,0.16977874]
[1732284142548,3.0,3282.4,3280.9,0.1393]
[1732284142931,0.9797,3282.9,3281.1,0.1393]
[1732284144085,3.9797,3282.9,3281.1,0.1393]
[1732284144495,3.0,3282.9,3281.1,0.1393]
[1732284144662,3.0,3282.9,3280.6,0.03047676]
[1732284144663,3.93825242,3283.5,3281.4,0.55]
[1732284144994,3.93825242,3282.4,3280.7,0.1393]
[1732284145196,3.93825242,3281.9,3280.7,0.1393]
[1732284145398,5.90556,3281.2,3279.2,0.03048122]
[1732284145686,3.93825242,3280.2,3279.1,0.1393]
[1732284145996,3.0,3280.1,3279.1,0.1393]
[1732284146194,3.0,3280.1,3279.1,0.12982516]
[1732284146690,3.93825242,3280.2,3279.1,0.12982516]
[1732284148465,3.0,3280.1,3279.1,0.12982516]
[1732284148659,0.69382524,3280.0,3279.1,0.12982516]
[1732284149486,0.148055,3279.9,3279.1,0.12982516]
[1732284150479,0.1005249,3279.9,3279.1,0.12982516]
[1732284151194,3.93825242,3279.2,3277.5,0.1299]
[1732284151404,3.69876924,3279.1,3277.5,0.1299]
[1732284151601,3.0,3279.1,3277.5,0.1299]
[1732284151968,3.0,3278.5,3277.5,0.1299]
[1732284153195,3.0,3279.0,3277.5,0.1299]
[1732284153397,0.69382524,3278.9,3277.5,0.1299]
[1732284155068,2.7208,3279.7,3277.8,0.55]
[1732284155069,3.93825242,3279.6,3277.8,0.55]
[1732284155292,3.93825242,3279.6,3277.8,0.1342]
[1732284155488,3.93825242,3279.6,3277.6,3.55]
[1732284155691,3.93825242,3280.1,3278.0,0.55]
[1732284155971,3.93825242,3280.1,3278.1,0.1342]
[1732284156167,3.93825242,3280.1,3278.4,3.0]
[1732284156370,3.93825242,3280.1,3278.6,0.1342]
[1732284157073,3.93825242,3279.1,3278.6,0.1342]
[1732284158989,3.0,3279.5,3278.6,0.1342]
[1732284159192,0.1005249,3279.9,3278.6,0.1342]
[1732284159981,3.93825242,3279.6,3278.6,0.1342]
[1732284160209,0.39382524,3279.5,3278.6,0.1342]
[1732284160419,3.93825242,3279.1,3278.6,0.1342]
[1732284160786,3.0,3279.5,3278.6,0.1342]
[1732284162913,3.93825242,3279.6,3278.6,0.1342]
[1732284164086,0.1005249,3279.9,3278.6,0.1342]
[1732284164311,0.41057739,3279.9,3278.6,0.1342]
[1732284164487,0.1005249,3279.9,3278.7,0.55]
[1732284164681,0.1005249,3279.9,3279.0,0.55]
[1732284164917,3.93825242,3281.1,3279.3,0.1342]
[1732284165221,3.93825242,3281.1,3279.5,0.1342]
[1732284165222,1.217506,3280.6,3279.5,0.1342]
[1732284166294,5.15575842,3280.6,3279.5,0.1342]
[1732284166490,3.93825242,3280.1,3279.5,0.1342]
[1732284169001,3.0,3280.0,3279.0,0.1342]
[1732284169899,3.93825242,3280.1,3279.0,0.1342]
[1732284170099,0.39382524,3280.0,3279.0,0.1342]
[1732284170697,3.93825242,3279.6,3279.0,0.1342]
[1732284170894,3.93825242,3279.6,3277.0,0.1342]
[1732284171100,3.93825242,3279.1,3277.2,0.1342]
[1732284171739,3.0,3279.0,3277.2,0.1342]
[1732284171937,0.99873724,3279.5,3277.2,0.1342]
[1732284172234,3.0,3279.5,3277.2,0.1342]
[1732284173131,3.0,3279.0,3277.2,0.1342]
[1732284173333,3.93825242,3278.6,3277.2,0.1342]
[1732284173632,0.39382524,3278.5,3277.2,0.1342]
[1732284174211,3.0,3279.0,3277.2,0.1342]
[1732284175212,3.93825242,3278.6,3277.2,0.1342]
[1732284175418,6.98834242,3278.6,3277.2,0.1342]
[1732284176234,3.0,3279.0,3277.2,0.1342]
[1732284177450,3.04987,3278.9,3277.2,0.1342]
[1732284177613,4.2041774,3278.8,3277.2,0.1342]
[1732284178547,3.93825242,3278.5,3276.6,0.1342]
[1732284178750,0.39382524,3278.4,3276.6,0.1342]
[1732284178950,4.48825242,3278.6,3276.6,0.1342]
[1732284179150,0.6042874,3278.8,3276.9,0.55]
[1732284179339,2.993004,3279.0,3277.0,0.1342]
[1732284179553,6.042714,3279.0,3277.0,0.1342]
[1732284179718,1.40469964,3278.9,3277.0,0.1342]
[1732284180027,1.40469964,3278.9,3276.4,0.0305174]
[1732284180028,1.40469964,3278.9,3277.2,0.1342]
[1732284181357,1.40469964,3278.9,3277.3,0.6842]
[1732284181527,0.43977036,3278.8,3277.4,0.1342]
[1732284181728,0.43977036,3278.8,3277.5,0.6842]
[1732284182461,0.43977036,3278.8,3277.5,0.1342]
[1732284182663,3.93825242,3278.6,3277.5,0.1342]
[1732284182869,3.93825242,3278.1,3277.5,0.1342]
[1732284183041,3.93825242,3278.1,3275.4,0.03051753]
[1732284183229,3.0,3278.0,3275.4,0.03051753]
[1732284183436,0.69382524,3277.9,3275.4,0.03051753]
[1732284183765,0.69382524,3277.9,3275.6,0.01]
[1732284183971,0.69382524,3277.9,3275.6,0.04051816]
[1732284184471,3.39382524,3278.5,3275.7,0.55]
[1732284184643,3.39382524,3278.5,3276.0,0.55]
[1732284184843,3.60033,3278.4,3276.0,3.0]
[1732284185032,3.0,3278.0,3275.7,3.0]
[1732284185241,3.0,3278.0,3275.8,0.0305206]
[1732284185762,3.0,3278.0,3275.7,3.0]
[1732284185970,0.69382524,3277.9,3275.8,0.33052063]
[1732284186132,0.69382524,3277.9,3275.8,3.33052065]
[1732284186333,0.69382524,3277.9,3275.8,0.03052065]
[1732284186568,0.69382524,3277.9,3275.9,0.55]
[1732284187078,3.0,3277.8,3275.6,3.0]
[1732284187262,0.39382524,3278.5,3275.6,3.0]
[1732284187263,0.73320777,3278.4,3275.8,3.0]
[1732284187452,0.39382524,3278.5,3275.9,0.03051685]
[1732284187762,0.39382524,3278.5,3275.9,3.03051685]
[1732284188132,0.39382524,3278.5,3276.0,3.0]
[1732284188331,0.33938252,3278.4,3276.2,0.55]
[1732284188768,0.33938252,3278.4,3276.3,0.03051663]
[1732284188950,0.33938252,3278.4,3276.3,0.58051663]
[1732284189587,0.33938252,3278.4,3276.5,0.55]
[1732284189728,3.93825242,3279.7,3277.0,0.55]
[1732284190065,3.93825242,3279.7,3275.7,0.3029]
[1732284190066,0.48962524,3279.6,3277.2,3.0]
[1732284190277,0.48962524,3279.6,3277.3,0.5805069]
[1732284190479,3.04931,3279.5,3277.3,0.55]
[1732284190766,3.49209777,3279.5,3277.2,3.0]
[1732284190942,0.44278777,3279.5,3277.3,3.55]
[1732284191147,3.93825242,3279.7,3277.3,0.58051148]
[1732284191348,4.87865242,3280.2,3277.6,3.0]
[1732284191662,7.92726242,3280.2,3277.7,0.58050248]
[1732284191864,7.92726242,3280.2,3277.7,0.55]
[1732284191865,0.48786524,3280.1,3277.7,0.55]
[1732284192753,6.53655524,3280.1,3277.7,0.55]
[1732284192954,3.0,3279.8,3277.7,0.55]
[1732284193166,3.0,3279.1,3277.2,3.0]
[1732284193333,3.0,3279.1,3276.1,0.3229]
[1732284193531,0.69382524,3279.0,3276.2,0.03051219]
[1732284194039,3.0,3278.9,3276.2,0.03051219]
[1732284194279,3.0,3278.5,3275.8,0.03051527]
[1732284194585,3.05055,3278.1,3275.5,0.03051779]
[1732284194737,3.0,3277.8,3275.3,0.01]
[1732284194938,0.69888024,3278.0,3275.4,0.03052018]
[1732284195134,3.0,3278.1,3275.4,0.03052018]
[1732284195360,3.0,3278.1,3275.7,0.01]
[1732284195563,0.3,3278.4,3275.7,0.0405165]
[1732284195775,3.9964,3278.6,3275.8,0.55]
[1732284196074,3.9964,3278.6,3275.9,0.03051608]
[1732284196280,3.9964,3278.6,3276.0,0.55]
[1732284196281,3.0,3278.6,3276.0,0.55]
[1732284196502,0.79346524,3278.5,3276.1,0.03051608]
[1732284196666,0.79346524,3278.5,3276.6,3.0]
[1732284196862,3.93825242,3279.2,3276.7,0.58051386]
[1732284197377,3.93825242,3279.2,3276.8,0.55]
[1732284197560,3.93825242,3279.2,3276.9,0.03051017]
[1732284197764,3.93825242,3278.7,3276.9,0.03051017]
[1732284198074,3.69882224,3278.6,3275.7,0.02]
[1732284198299,3.0,3278.6,3276.4,3.0]
[1732284198603,3.0,3278.6,3275.7,0.04051607]
[1732284198897,0.69382524,3278.5,3275.7,0.05051607]
[1732284199096,0.69382524,3278.5,3276.2,0.55]
[1732284199297,0.69382524,3278.5,3276.3,0.03051478]
[1732284200185,3.0,3279.1,3276.6,0.55]
[1732284200384,3.0,3279.1,3276.8,0.55]
[1732284200697,3.93825242,3280.2,3277.5,0.55]
[1732284200865,3.93825242,3280.2,3277.6,0.03050249]
[1732284201474,3.93825242,3280.2,3277.7,0.8529]
[1732284201689,0.48875524,3280.1,3277.9,0.3029]
[1732284201866,1.217506,3280.6,3278.0,0.58049769]
[1732284202062,0.9493,3280.8,3278.0,0.89339769]
[1732284202284,4.88755242,3281.2,3278.2,0.01]
[1732284202459,1.61139824,3281.1,3278.4,0.3129]
[1732284202672,0.39382524,3281.1,3278.7,0.55]
[1732284202898,0.43320777,3281.0,3278.8,0.03048938]
[1732284203199,0.43320777,3281.0,3279.1,0.55]
[1732284203387,3.93825242,3281.7,3279.2,0.03048598]
[1732284203589,4.80115242,3281.7,3279.2,0.03048598]
[1732284203774,2.9054,3282.0,3279.2,0.03048598]
[1732284203963,0.29054,3281.9,3279.3,0.55]
[1732284204163,0.29054,3281.9,3279.1,0.3029]
[1732284204164,3.93825242,3281.7,3279.7,0.55]
[1732284204403,3.93825242,3281.7,3278.8,0.02]
[1732284204404,3.93825242,3281.2,3277.8,0.01]
[1732284204600,7.98055242,3280.7,3277.8,0.03049373]
[1732284204810,0.39382524,3281.6,3276.6,0.22383316]
[1732284204811,3.93825242,3279.7,3276.7,0.03049783]
[1732284205097,3.04924,3279.5,3276.7,0.03049783]
[1732284205317,3.0,3278.7,3276.2,0.03050907]
[1732284205466,3.0,3279.1,3276.2,0.03050907]
[1732284205872,3.0,3279.1,3276.5,0.01]
[1732284206094,0.79571524,3279.0,3276.9,0.01]
[1732284206302,3.0,3280.0,3277.1,0.01]
[1732284206499,3.9461,3280.1,3277.1,0.04050106]
[1732284206703,3.04887,3279.9,3277.1,0.03050106]
[1732284206884,0.48843524,3280.0,3277.1,0.03050106]
[1732284207075,3.0,3279.8,3277.1,0.03050106]
[1732284207403,3.0,3279.6,3277.3,3.0]
[1732284207657,3.0,3279.6,3276.6,0.0405045]
[1732284208278,3.0,3279.6,3276.9,0.01]
[1732284208481,0.72382524,3279.5,3277.1,0.3029]
[1732284208678,0.48843524,3280.0,3277.2,0.34340319]
[1732284208880,3.93825242,3280.2,3278.0,0.55]
[1732284209086,3.37841463,3281.2,3278.0,0.55]
[1732284209087,3.93825242,3280.7,3278.1,0.03050009]
[1732284209279,0.39382524,3280.6,3278.5,0.55]
[1732284209508,3.04754,3281.4,3278.6,0.33339284]
[1732284209509,0.9652,3281.4,3278.6,0.33339284]
[1732284209704,3.93825242,3281.7,3278.6,0.33339284]
[1732284209705,3.93825242,3281.7,3278.8,0.55]
[1732284209907,0.39382524,3281.6,3279.4,3.0]
[1732284210118,0.39382524,3281.6,3279.5,0.5804834]
[1732284210270,3.93825242,3282.2,3279.5,0.5804834]
[1732284210610,0.580483,3282.1,3279.8,3.0]
[1732284210807,3.93825242,3282.2,3279.9,0.03048351]
[1732284211118,0.39382524,3282.1,3280.1,0.55]
[1732284211425,3.93825242,3282.7,3279.4,0.03048043]
[1732284211426,3.93825242,3282.7,3280.5,0.55]
[1732284211572,3.04646,3282.5,3280.5,0.55]
[1732284211779,0.94382524,3282.6,3280.2,0.58047772]
[1732284211977,0.79283477,3282.5,3280.2,0.58047772]
[1732284212704,3.83929477,3282.5,3280.2,3.58047772]
[1732284212911,0.79283477,3282.5,3280.3,0.03047938]
[1732284213214,0.43428348,3282.4,3280.5,0.55]
[1732284213541,7.80555242,3283.2,3280.6,0.03047438]
[1732284213741,3.93825242,3283.2,3280.9,0.55]
[1732284213908,4.73108742,3283.2,3281.0,0.03047231]
[1732284214111,0.944,3283.7,3281.0,0.03047231]
[1732284214112,4.88225242,3283.7,3281.0,0.03047231]
[1732284214314,3.93825242,3283.7,3281.0,0.03047231]
[1732284214631,0.51548924,3283.6,3281.5,0.55]
[1732284214794,0.51548924,3283.6,3281.5,0.58046807]
[1732284214993,0.51548924,3283.6,3281.6,0.03046784]
[1732284215195,4.89495242,3284.2,3281.9,0.55]
[1732284215196,3.93825242,3284.2,3281.9,0.55]
[1732284215512,0.33070463,3284.8,3281.9,0.55]
[1732284215513,0.580468,3284.3,3282.6,0.55]
[1732284215831,3.93825242,3285.7,3283.1,0.55]
[1732284215997,3.93825242,3284.7,3281.5,0.01]
[1732284216201,3.93825242,3284.2,3282.1,3.0]
[1732284216420,3.93825242,3284.2,3282.2,0.55]
[1732284216606,0.39382524,3284.6,3282.5,0.55]
[1732284216823,3.04458,3284.6,3282.5,0.55]
[1732284217007,6.98257242,3284.8,3282.5,0.55]
[1732284217008,3.93825242,3284.8,3282.5,0.55]
[1732284217193,3.93825242,3284.8,3282.2,0.55]
[1732284217399,0.39382524,3284.7,3282.3,0.03045945]
[1732284217998,3.93825242,3284.3,3282.2,0.55]